[Event "Titled Tuesday Blitz July 05 Early 2022"]
[White "Melkumyan, Hrant"]
[Black "Karaev, Seit-Amet"]
[WhiteFideId "13302485"]
[BlackFideId "4169549"]
[WhiteElo "2604"]
[BlackElo "2272"]
[Result "1-0"]
[Round "02"]
[TimeControl "180+1"]
[Date "2022.07.05"]
[WhiteClock "0:00:50"]
[BlackClock "0:00:18"]

1. Nf3 {[%clk 0:03:00]}  Nf6 {[%clk 0:02:58]} 2. c4 {[%clk 0:03:00]}  g6 {[%clk 0:02:59]} 3. Nc3 {[%clk 0:03:00]}  Bg7 {[%clk 0:02:59]} 4. e4 {[%clk 0:03:00]}  d6 {[%clk 0:02:59]} 5. d4 {[%clk 0:03:00]}  O-O {[%clk 0:03:00]} 6. Be2 {[%clk 0:03:00]}  c5 {[%clk 0:03:00]} 7. d5 {[%clk 0:02:58]}  a6 {[%clk 0:03:00]} 8. O-O {[%clk 0:02:59]}  b5 {[%clk 0:03:00]} 9. cxb5 {[%clk 0:02:58]}  axb5 {[%clk 0:03:01]} 10. Bxb5 {[%clk 0:02:59]}  Ba6 {[%clk 0:03:01]} 11. Re1 {[%clk 0:02:56]}  Qa5 {[%clk 0:03:01]} 12. a4 {[%clk 0:02:54]}  Bxb5 {[%clk 0:02:58]} 13. Nxb5 {[%clk 0:02:53]}  Nfd7 {[%clk 0:02:55]} 14. Bd2 {[%clk 0:02:52]}  Qb6 {[%clk 0:02:55]} 15. Bc3 {[%clk 0:02:53]}  f6 {[%clk 0:02:54]} 16. Nd2 {[%clk 0:02:46]}  Na6 {[%clk 0:02:54]} 17. Qg4 {[%clk 0:02:44]}  Ne5 {[%clk 0:02:47]} 18. Bxe5 {[%clk 0:02:42]}  fxe5 {[%clk 0:02:47]} 19. Nc4 {[%clk 0:02:41]}  Qd8 {[%clk 0:02:45]} 20. g3 {[%clk 0:02:38]}  Nb4 {[%clk 0:02:39]} 21. Re2 {[%clk 0:02:32]}  Kh8 {[%clk 0:02:25]} 22. b3 {[%clk 0:02:31]}  Na6 {[%clk 0:02:22]} 23. h4 {[%clk 0:02:29]}  Nc7 {[%clk 0:02:21]} 24. Nxc7 {[%clk 0:02:25]}  Qxc7 {[%clk 0:02:22]} 25. Rd1 {[%clk 0:02:24]}  Rab8 {[%clk 0:02:20]} 26. Rd3 {[%clk 0:02:24]}  Rf6 {[%clk 0:02:09]} 27. h5 {[%clk 0:02:21]}  gxh5 {[%clk 0:02:10]} 28. Qxh5 {[%clk 0:02:20]}  Rg8 {[%clk 0:02:10]} 29. Rf3 {[%clk 0:02:15]}  Rh6 {[%clk 0:02:10]} 30. Qf5 {[%clk 0:02:08]}  Bf6 {[%clk 0:02:09]} 31. Kg2 {[%clk 0:01:53]}  Rg5 {[%clk 0:02:04]} 32. Qe6 {[%clk 0:01:53]}  Rgh5 {[%clk 0:02:01]} 33. Rf5 {[%clk 0:01:50]}  Rh2+ {[%clk 0:01:59]} 34. Kf3 {[%clk 0:01:50]}  Qb8 {[%clk 0:01:54]} 35. Re3 {[%clk 0:01:44]}  Bg5 {[%clk 0:01:47]} 36. Qf7 {[%clk 0:01:43]}  Bxe3 {[%clk 0:01:44]} 37. Nxe3 {[%clk 0:01:44]}  Qd8 {[%clk 0:01:30]} 38. Ng4 {[%clk 0:01:38]}  Rh1 {[%clk 0:01:24]} 39. Nxh6 {[%clk 0:01:36]}  Rxh6 {[%clk 0:01:25]} 40. Qf8+ {[%clk 0:01:35]}  Qxf8 {[%clk 0:01:23]} 41. Rxf8+ {[%clk 0:01:36]}  Kg7 {[%clk 0:01:24]} 42. Rb8 {[%clk 0:01:32]}  Rh1 {[%clk 0:01:24]} 43. Kg4 {[%clk 0:01:28]}  Rb1 {[%clk 0:01:22]} 44. Rb5 {[%clk 0:01:24]}  Kf6 {[%clk 0:01:20]} 45. a5 {[%clk 0:01:19]}  Rb2 {[%clk 0:01:19]} 46. f3 {[%clk 0:01:14]}  Rh2 {[%clk 0:01:20]} 47. f4 {[%clk 0:01:13]}  h5+ {[%clk 0:01:17]} 48. Kf3 {[%clk 0:01:13]}  Ra2 {[%clk 0:01:13]} 49. Ke3 {[%clk 0:01:08]}  Rg2 {[%clk 0:01:11]} 50. Kf3 {[%clk 0:01:07]}  Ra2 {[%clk 0:01:12]} 51. f5 {[%clk 0:00:59]}  Ra3 {[%clk 0:01:08]} 52. Kg2 {[%clk 0:00:59]}  c4 {[%clk 0:00:39]} 53. bxc4 {[%clk 0:00:58]}  Kg5 {[%clk 0:00:39]} 54. c5 {[%clk 0:00:50]}  dxc5 {[%clk 0:00:31]} 55. Rxc5 {[%clk 0:00:51]}  Kg4 {[%clk 0:00:32]} 56. Kf2 {[%clk 0:00:51]}  Rf3+ {[%clk 0:00:27]} 57. Ke2 {[%clk 0:00:51]}  Rxg3 {[%clk 0:00:28]} 58. f6 {[%clk 0:00:51]}  exf6 {[%clk 0:00:26]} 59. d6 {[%clk 0:00:51]}  Rb3 {[%clk 0:00:22]} 60. d7 {[%clk 0:00:51]}  Rb2+ {[%clk 0:00:20]} 61. Kd3 {[%clk 0:00:49]}  Rb1 {[%clk 0:00:19]} 62. Kc2 {[%clk 0:00:49]}  Rb8 {[%clk 0:00:18]} 63. Rc8 {[%clk 0:00:50]} 1-0


[Site "https://www.chess.com"]

[Event "Titled Tuesday Blitz July 05 Early 2022"]
[White "Navarrete Mendez, Gonzalo Alberto"]
[Black "Dubov, Daniil"]
[WhiteFideId "5106850"]
[BlackFideId "24126055"]
[WhiteElo "2261"]
[BlackElo "2791"]
[Result "0-1"]
[Round "02"]
[TimeControl "180+1"]
[Date "2022.07.05"]
[WhiteClock "0:00:06"]
[BlackClock "0:00:07"]

1. e4 {[%clk 0:03:00]}  e5 {[%clk 0:02:58]} 2. Nf3 {[%clk 0:03:00]}  Nc6 {[%clk 0:02:59]} 3. Nc3 {[%clk 0:03:01]}  Nf6 {[%clk 0:02:58]} 4. Bb5 {[%clk 0:03:01]}  Nd4 {[%clk 0:02:57]} 5. O-O {[%clk 0:03:00]}  Nxb5 {[%clk 0:02:56]} 6. Nxb5 {[%clk 0:03:01]}  c6 {[%clk 0:02:57]} 7. Nc3 {[%clk 0:03:01]}  d6 {[%clk 0:02:57]} 8. d4 {[%clk 0:03:01]}  Qc7 {[%clk 0:02:56]} 9. Bg5 {[%clk 0:03:01]}  Be7 {[%clk 0:02:56]} 10. Qd3 {[%clk 0:02:58]}  h6 {[%clk 0:02:53]} 11. Bxf6 {[%clk 0:02:58]}  Bxf6 {[%clk 0:02:53]} 12. d5 {[%clk 0:02:59]}  O-O {[%clk 0:02:52]} 13. Rfd1 {[%clk 0:02:53]}  Be7 {[%clk 0:02:50]} 14. Nxe5 {[%clk 0:02:31]}  dxe5 {[%clk 0:02:45]} 15. d6 {[%clk 0:02:32]}  Bxd6 {[%clk 0:02:44]} 16. Qxd6 {[%clk 0:02:32]}  Qxd6 {[%clk 0:02:45]} 17. Rxd6 {[%clk 0:02:33]}  Re8 {[%clk 0:02:44]} 18. Rad1 {[%clk 0:02:32]}  Kf8 {[%clk 0:02:43]} 19. f3 {[%clk 0:02:28]}  Ke7 {[%clk 0:02:42]} 20. Kf2 {[%clk 0:02:25]}  Be6 {[%clk 0:02:40]} 21. R6d2 {[%clk 0:02:01]}  Rh8 {[%clk 0:02:21]} 22. Ke3 {[%clk 0:01:59]}  g5 {[%clk 0:02:18]} 23. Na4 {[%clk 0:01:52]}  b6 {[%clk 0:02:08]} 24. b3 {[%clk 0:01:40]}  h5 {[%clk 0:02:00]} 25. c4 {[%clk 0:01:29]}  Rad8 {[%clk 0:01:58]} 26. Rxd8 {[%clk 0:00:58]}  Rxd8 {[%clk 0:01:56]} 27. Rxd8 {[%clk 0:00:59]}  Kxd8 {[%clk 0:01:56]} 28. g3 {[%clk 0:00:58]}  Ke7 {[%clk 0:01:47]} 29. f4 {[%clk 0:00:53]}  exf4+ {[%clk 0:01:23]} 30. gxf4 {[%clk 0:00:54]}  Kf6 {[%clk 0:01:22]} 31. Nc3 {[%clk 0:00:44]}  h4 {[%clk 0:01:16]} 32. Ne2 {[%clk 0:00:31]}  Bd7 {[%clk 0:01:15]} 33. Nd4 {[%clk 0:00:27]}  g4 {[%clk 0:01:07]} 34. e5+ {[%clk 0:00:22]}  Kg6 {[%clk 0:01:08]} 35. Ne2 {[%clk 0:00:18]}  c5 {[%clk 0:00:57]} 36. Nc3 {[%clk 0:00:15]}  Bf5 {[%clk 0:00:38]} 37. Nd5 {[%clk 0:00:13]}  Bb1 {[%clk 0:00:38]} 38. a3 {[%clk 0:00:10]}  Ba2 {[%clk 0:00:34]} 39. Ne7+ {[%clk 0:00:08]}  Kh5 {[%clk 0:00:27]} 40. Nc6 {[%clk 0:00:07]}  Bxb3 {[%clk 0:00:25]} 41. Nxa7 {[%clk 0:00:08]}  Bxc4 {[%clk 0:00:18]} 42. Nc8 {[%clk 0:00:08]}  b5 {[%clk 0:00:09]} 43. Nd6 {[%clk 0:00:08]}  Bd5 {[%clk 0:00:09]} 44. f5 {[%clk 0:00:08]}  g3 {[%clk 0:00:07]} 45. hxg3 {[%clk 0:00:08]}  h3 {[%clk 0:00:08]} 46. e6 {[%clk 0:00:07]}  fxe6 {[%clk 0:00:08]} 47. f6 {[%clk 0:00:08]}  e5 {[%clk 0:00:08]} 48. Nxb5 {[%clk 0:00:06]}  h2 {[%clk 0:00:07]} 49. Nc3 {[%clk 0:00:06]}  h1=Q {[%clk 0:00:07]} 50. f7 {[%clk 0:00:05]}  Qf3+ {[%clk 0:00:06]} 51. Kd2 {[%clk 0:00:06]}  Bxf7 {[%clk 0:00:07]} 0-1


[Site "https://www.chess.com"]

[Event "Titled Tuesday Blitz July 05 Early 2022"]
[White "Perez Ponsa, Federico"]
[Black "Alinasab, Mobina"]
[WhiteFideId "117927"]
[BlackFideId "12528897"]
[WhiteElo "2672"]
[BlackElo "2031"]
[Result "1-0"]
[Round "02"]
[TimeControl "180+1"]
[Date "2022.07.05"]
[WhiteClock "0:00:06"]
[BlackClock "0:00:07"]

1. e4 {[%clk 0:03:00]}  c5 {[%clk 0:02:59]} 2. Nc3 {[%clk 0:03:00]}  e6 {[%clk 0:02:59]} 3. g3 {[%clk 0:03:00]}  d6 {[%clk 0:02:56]} 4. Bg2 {[%clk 0:02:58]}  Nc6 {[%clk 0:02:57]} 5. Nge2 {[%clk 0:02:58]}  Nge7 {[%clk 0:02:56]} 6. O-O {[%clk 0:02:57]}  a6 {[%clk 0:02:56]} 7. a4 {[%clk 0:02:56]}  g6 {[%clk 0:02:56]} 8. d4 {[%clk 0:02:56]}  cxd4 {[%clk 0:02:57]} 9. Nxd4 {[%clk 0:02:56]}  Bg7 {[%clk 0:02:57]} 10. Be3 {[%clk 0:02:55]}  O-O {[%clk 0:02:57]} 11. Qd2 {[%clk 0:02:55]}  Qc7 {[%clk 0:02:56]} 12. Nb3 {[%clk 0:02:54]}  Ne5 {[%clk 0:02:55]} 13. Qe2 {[%clk 0:02:47]}  Nc4 {[%clk 0:02:54]} 14. Bc1 {[%clk 0:02:47]}  Nxb2 {[%clk 0:02:51]} 15. Bxb2 {[%clk 0:02:41]}  Bxc3 {[%clk 0:02:51]} 16. Bxc3 {[%clk 0:02:41]}  Qxc3 {[%clk 0:02:51]} 17. Rfd1 {[%clk 0:02:41]}  Rd8 {[%clk 0:02:41]} 18. Rd3 {[%clk 0:02:41]}  Qc7 {[%clk 0:02:38]} 19. Rad1 {[%clk 0:02:38]}  b5 {[%clk 0:02:31]} 20. axb5 {[%clk 0:02:14]}  axb5 {[%clk 0:02:32]} 21. Qd2 {[%clk 0:02:15]}  Ra6 {[%clk 0:02:28]} 22. Qh6 {[%clk 0:02:06]}  e5 {[%clk 0:02:10]} 23. Qd2 {[%clk 0:01:46]}  Be6 {[%clk 0:02:09]} 24. Rc3 {[%clk 0:01:45]}  Rc6 {[%clk 0:02:07]} 25. Rxc6 {[%clk 0:01:41]}  Qxc6 {[%clk 0:02:08]} 26. Bf1 {[%clk 0:01:41]}  Qxe4 {[%clk 0:01:59]} 27. Qg5 {[%clk 0:01:36]}  Qb7 {[%clk 0:01:18]} 28. Nc5 {[%clk 0:01:34]}  Qc7 {[%clk 0:01:00]} 29. Nxe6 {[%clk 0:01:25]}  fxe6 {[%clk 0:01:01]} 30. Qf6 {[%clk 0:01:25]}  b4 {[%clk 0:00:45]} 31. Qxe6+ {[%clk 0:01:24]}  Kg7 {[%clk 0:00:42]} 32. Bc4 {[%clk 0:01:19]}  Nf5 {[%clk 0:00:36]} 33. Qd5 {[%clk 0:01:08]}  Rc8 {[%clk 0:00:22]} 34. Bb3 {[%clk 0:00:57]}  Re8 {[%clk 0:00:14]} 35. Qe4 {[%clk 0:00:51]}  Rf8 {[%clk 0:00:08]} 36. Qxb4 {[%clk 0:00:50]}  Nd4 {[%clk 0:00:06]} 37. Rxd4 {[%clk 0:00:49]}  exd4 {[%clk 0:00:07]} 38. Qxd4+ {[%clk 0:00:49]}  Rf6 {[%clk 0:00:05]} 39. h4 {[%clk 0:00:47]}  Qc5 {[%clk 0:00:05]} 40. Qd2 {[%clk 0:00:46]}  Qe5 {[%clk 0:00:05]} 41. Bd5 {[%clk 0:00:45]}  h6 {[%clk 0:00:05]} 42. c4 {[%clk 0:00:45]}  Qa1+ {[%clk 0:00:04]} 43. Kg2 {[%clk 0:00:45]}  Qa7 {[%clk 0:00:05]} 44. Qe2 {[%clk 0:00:44]}  Qc7 {[%clk 0:00:04]} 45. f4 {[%clk 0:00:43]}  Rf8 {[%clk 0:00:03]} 46. h5 {[%clk 0:00:42]}  gxh5 {[%clk 0:00:03]} 47. Qxh5 {[%clk 0:00:43]}  Qe7 {[%clk 0:00:02]} 48. Qg4+ {[%clk 0:00:42]}  Kh8 {[%clk 0:00:03]} 49. Qg6 {[%clk 0:00:43]}  Qf6 {[%clk 0:00:03]} 50. Qe4 {[%clk 0:00:41]}  Qg7 {[%clk 0:00:03]} 51. Qf3 {[%clk 0:00:39]}  Qh7 {[%clk 0:00:02]} 52. Be4 {[%clk 0:00:38]}  Qg7 {[%clk 0:00:03]} 53. Qd3 {[%clk 0:00:38]}  Qf6 {[%clk 0:00:03]} 54. Qb1 {[%clk 0:00:33]}  Qg7 {[%clk 0:00:02]} 55. Kf3 {[%clk 0:00:27]}  Re8 {[%clk 0:00:02]} 56. Qd3 {[%clk 0:00:27]}  Rg8 {[%clk 0:00:02]} 57. Kg2 {[%clk 0:00:27]}  Qf6 {[%clk 0:00:02]} 58. Qf3 {[%clk 0:00:24]}  Rf8 {[%clk 0:00:03]} 59. Bd3 {[%clk 0:00:22]}  Qb2+ {[%clk 0:00:03]} 60. Kh3 {[%clk 0:00:22]}  Qg7 {[%clk 0:00:03]} 61. g4 {[%clk 0:00:17]}  Rg8 {[%clk 0:00:03]} 62. Bf5 {[%clk 0:00:17]}  Rf8 {[%clk 0:00:03]} 63. Qd5 {[%clk 0:00:17]}  Qf6 {[%clk 0:00:04]} 64. Qe4 {[%clk 0:00:15]}  Qc3+ {[%clk 0:00:04]} 65. Kh4 {[%clk 0:00:15]}  Qf6+ {[%clk 0:00:05]} 66. Kg3 {[%clk 0:00:14]}  Qc3+ {[%clk 0:00:04]} 67. Kf2 {[%clk 0:00:13]}  Qb2+ {[%clk 0:00:04]} 68. Kf3 {[%clk 0:00:14]}  Qc3+ {[%clk 0:00:04]} 69. Ke2 {[%clk 0:00:15]}  Qb2+ {[%clk 0:00:04]} 70. Ke3 {[%clk 0:00:13]}  Qf6 {[%clk 0:00:05]} 71. Qb7 {[%clk 0:00:11]}  Qf7 {[%clk 0:00:04]} 72. Qxf7 {[%clk 0:00:11]}  Rxf7 {[%clk 0:00:05]} 73. Ke4 {[%clk 0:00:12]}  Rf6 {[%clk 0:00:05]} 74. g5 {[%clk 0:00:11]}  hxg5 {[%clk 0:00:05]} 75. fxg5 {[%clk 0:00:11]}  Rf8 {[%clk 0:00:05]} 76. Be6 {[%clk 0:00:10]}  Kg7 {[%clk 0:00:05]} 77. Kd5 {[%clk 0:00:08]}  Rd8 {[%clk 0:00:04]} 78. Bf5 {[%clk 0:00:06]}  Rf8 {[%clk 0:00:03]} 79. Be4 {[%clk 0:00:06]}  Rf4 {[%clk 0:00:02]} 80. g6 {[%clk 0:00:03]}  Rg4 {[%clk 0:00:03]} 81. Bf5 {[%clk 0:00:02]}  Rh4 {[%clk 0:00:03]} 82. Be6 {[%clk 0:00:02]}  Rf4 {[%clk 0:00:03]} 83. Kxd6 {[%clk 0:00:03]}  Kf6 {[%clk 0:00:04]} 84. c5 {[%clk 0:00:03]}  Rd4+ {[%clk 0:00:04]} 85. Bd5 {[%clk 0:00:04]}  Rd1 {[%clk 0:00:04]} 86. c6 {[%clk 0:00:03]}  Rc1 {[%clk 0:00:04]} 87. Be4 {[%clk 0:00:03]}  Rxc6+ {[%clk 0:00:05]} 88. Kxc6 {[%clk 0:00:03]}  Kg7 {[%clk 0:00:06]} 89. Kd6 {[%clk 0:00:04]}  Kf6 {[%clk 0:00:06]} 90. Kd7 {[%clk 0:00:04]}  Kg7 {[%clk 0:00:07]} 91. Ke7 {[%clk 0:00:05]}  Kg8 {[%clk 0:00:07]} 92. Kf6 {[%clk 0:00:05]}  Kh8 {[%clk 0:00:07]} 93. g7+ {[%clk 0:00:06]} 1-0


[Site "https://www.chess.com"]

[Event "Titled Tuesday Blitz July 05 Early 2022"]
[White "Saveliev, Alexei"]
[Black "Pap, Gyula"]
[WhiteFideId "24128546"]
[BlackFideId "725323"]
[WhiteElo "2281"]
[BlackElo "2553"]
[Result "0-1"]
[Round "02"]
[TimeControl "180+1"]
[Date "2022.07.05"]
[WhiteClock "0:00:01"]
[BlackClock "0:00:11"]

1. c4 {[%clk 0:02:59]}  e5 {[%clk 0:02:58]} 2. Nc3 {[%clk 0:03:00]}  Nf6 {[%clk 0:02:58]} 3. Nf3 {[%clk 0:03:00]}  Nc6 {[%clk 0:02:58]} 4. e3 {[%clk 0:03:00]}  g6 {[%clk 0:02:43]} 5. d4 {[%clk 0:03:00]}  d6 {[%clk 0:02:44]} 6. Be2 {[%clk 0:02:57]}  Bg7 {[%clk 0:02:43]} 7. O-O {[%clk 0:02:58]}  O-O {[%clk 0:02:44]} 8. a3 {[%clk 0:02:49]}  Re8 {[%clk 0:02:23]} 9. h3 {[%clk 0:02:36]}  Bf5 {[%clk 0:02:14]} 10. b4 {[%clk 0:02:33]}  exd4 {[%clk 0:02:13]} 11. Nxd4 {[%clk 0:02:28]}  Nxd4 {[%clk 0:02:12]} 12. exd4 {[%clk 0:02:27]}  Ne4 {[%clk 0:01:55]} 13. Nxe4 {[%clk 0:02:13]}  Rxe4 {[%clk 0:01:53]} 14. Bb2 {[%clk 0:02:10]}  Qg5 {[%clk 0:01:37]} 15. Bf3 {[%clk 0:02:06]}  Rh4 {[%clk 0:01:25]} 16. Qc1 {[%clk 0:01:32]}  Qxc1 {[%clk 0:01:14]} 17. Raxc1 {[%clk 0:01:32]}  Bxd4 {[%clk 0:01:14]} 18. Bxd4 {[%clk 0:01:33]}  Rxd4 {[%clk 0:01:15]} 19. Bxb7 {[%clk 0:01:30]}  Rb8 {[%clk 0:01:15]} 20. Bc6 {[%clk 0:01:18]}  Bd3 {[%clk 0:01:11]} 21. Rfd1 {[%clk 0:01:14]}  Rxc4 {[%clk 0:01:11]} 22. Bd5 {[%clk 0:01:07]}  Rxc1 {[%clk 0:01:05]} 23. Rxc1 {[%clk 0:01:08]}  c5 {[%clk 0:00:54]} 24. bxc5 {[%clk 0:01:09]}  Rb5 {[%clk 0:00:53]} 25. Rc3 {[%clk 0:00:30]}  Bb1 {[%clk 0:00:37]} 26. Rf3 {[%clk 0:00:13]}  Bf5 {[%clk 0:00:29]} 27. g4 {[%clk 0:00:08]}  Rxc5 {[%clk 0:00:29]} 28. Bb3 {[%clk 0:00:07]}  Be6 {[%clk 0:00:28]} 29. Bxe6 {[%clk 0:00:06]}  fxe6 {[%clk 0:00:29]} 30. Kg2 {[%clk 0:00:07]}  Kg7 {[%clk 0:00:29]} 31. Rb3 {[%clk 0:00:05]}  Rc7 {[%clk 0:00:29]} 32. Rd3 {[%clk 0:00:05]}  d5 {[%clk 0:00:28]} 33. f4 {[%clk 0:00:05]}  Kf6 {[%clk 0:00:29]} 34. Kf3 {[%clk 0:00:06]}  Rc4 {[%clk 0:00:28]} 35. Rb3 {[%clk 0:00:05]}  g5 {[%clk 0:00:27]} 36. fxg5+ {[%clk 0:00:05]}  Kxg5 {[%clk 0:00:28]} 37. Re3 {[%clk 0:00:05]}  Kf6 {[%clk 0:00:26]} 38. Rb3 {[%clk 0:00:05]}  Ra4 {[%clk 0:00:26]} 39. Kg3 {[%clk 0:00:04]}  e5 {[%clk 0:00:22]} 40. Kh4 {[%clk 0:00:04]}  d4 {[%clk 0:00:22]} 41. Kg3 {[%clk 0:00:02]}  Ke6 {[%clk 0:00:18]} 42. g5 {[%clk 0:00:02]}  Kf5 {[%clk 0:00:18]} 43. h4 {[%clk 0:00:02]}  Ke4 {[%clk 0:00:15]} 44. h5 {[%clk 0:00:02]}  Ra6 {[%clk 0:00:15]} 45. Kg4 {[%clk 0:00:01]}  d3 {[%clk 0:00:14]} 46. Rb4+ {[%clk 0:00:02]}  Ke3 {[%clk 0:00:15]} 47. Rb5 {[%clk 0:00:02]}  e4 {[%clk 0:00:15]} 48. Kf5 {[%clk 0:00:02]}  d2 {[%clk 0:00:14]} 49. Rd5 {[%clk 0:00:02]}  Ke2 {[%clk 0:00:11]} 50. Kxe4 {[%clk 0:00:01]}  Ra5 {[%clk 0:00:11]} 0-1


[Site "https://www.chess.com"]

[Event "Titled Tuesday Blitz July 05 Early 2022"]
[White "Stoleriu, George"]
[Black "Niemann, Hans Moke"]
[WhiteFideId "1227505"]
[BlackFideId "2093596"]
[WhiteElo "2194"]
[BlackElo "2632"]
[Result "0-1"]
[Round "02"]
[TimeControl "180+1"]
[Date "2022.07.05"]
[WhiteClock "0:00:02"]
[BlackClock "0:00:21"]

1. e4 {[%clk 0:02:56]}  c6 {[%clk 0:02:54]} 2. Nf3 {[%clk 0:02:55]}  d5 {[%clk 0:02:54]} 3. exd5 {[%clk 0:02:56]}  cxd5 {[%clk 0:02:54]} 4. Ne5 {[%clk 0:02:56]}  Nc6 {[%clk 0:02:51]} 5. d4 {[%clk 0:02:55]}  Nf6 {[%clk 0:02:46]} 6. Bb5 {[%clk 0:02:54]}  Bd7 {[%clk 0:02:39]} 7. Nxd7 {[%clk 0:02:53]}  Qxd7 {[%clk 0:02:38]} 8. c3 {[%clk 0:02:54]}  e6 {[%clk 0:02:37]} 9. O-O {[%clk 0:02:52]}  Bd6 {[%clk 0:02:38]} 10. Nd2 {[%clk 0:02:53]}  a6 {[%clk 0:02:35]} 11. Bd3 {[%clk 0:02:53]}  O-O {[%clk 0:02:34]} 12. Qe2 {[%clk 0:02:53]}  h6 {[%clk 0:02:30]} 13. Nf3 {[%clk 0:02:53]}  b5 {[%clk 0:02:29]} 14. a4 {[%clk 0:02:51]}  bxa4 {[%clk 0:02:19]} 15. Rxa4 {[%clk 0:02:50]}  a5 {[%clk 0:02:17]} 16. Ra1 {[%clk 0:02:39]}  Rfb8 {[%clk 0:02:14]} 17. Ne5 {[%clk 0:02:37]}  Qc7 {[%clk 0:02:11]} 18. f4 {[%clk 0:02:35]}  Ne7 {[%clk 0:01:54]} 19. g4 {[%clk 0:02:26]}  Nd7 {[%clk 0:01:51]} 20. Nxd7 {[%clk 0:02:16]}  Qxd7 {[%clk 0:01:50]} 21. f5 {[%clk 0:02:17]}  exf5 {[%clk 0:01:47]} 22. gxf5 {[%clk 0:02:18]}  f6 {[%clk 0:01:45]} 23. Qg4 {[%clk 0:02:06]}  Kh8 {[%clk 0:01:43]} 24. Rf3 {[%clk 0:02:05]}  Re8 {[%clk 0:01:31]} 25. Bf4 {[%clk 0:01:14]}  Bxf4 {[%clk 0:01:27]} 26. Qxf4 {[%clk 0:01:15]}  a4 {[%clk 0:01:24]} 27. Re3 {[%clk 0:00:56]}  Ng8 {[%clk 0:01:23]} 28. Rae1 {[%clk 0:00:41]}  Reb8 {[%clk 0:01:08]} 29. R1e2 {[%clk 0:00:23]}  Rb3 {[%clk 0:01:06]} 30. Bc2 {[%clk 0:00:23]}  Rxb2 {[%clk 0:01:04]} 31. Bxa4 {[%clk 0:00:07]}  Rb1+ {[%clk 0:01:03]} 32. Kg2 {[%clk 0:00:07]}  Qxa4 {[%clk 0:01:01]} 33. Qc7 {[%clk 0:00:06]}  Qa1 {[%clk 0:00:55]} 34. Kh3 {[%clk 0:00:04]}  Rg1 {[%clk 0:00:51]} 35. Rf2 {[%clk 0:00:05]}  Rg5 {[%clk 0:00:45]} 36. Rg3 {[%clk 0:00:03]}  Qe1 {[%clk 0:00:33]} 37. Rfg2 {[%clk 0:00:02]}  Qe4 {[%clk 0:00:29]} 38. Rxg5 {[%clk 0:00:02]}  hxg5 {[%clk 0:00:25]} 39. Rg4 {[%clk 0:00:01]}  Qxf5 {[%clk 0:00:23]} 40. Kg3 {[%clk 0:00:01]}  Nh6 {[%clk 0:00:22]} 41. h3 {[%clk 0:00:01]}  Qd3+ {[%clk 0:00:22]} 42. Kg2 {[%clk 0:00:02]}  Ra2+ {[%clk 0:00:21]} 0-1


[Site "https://www.chess.com"]

[Event "Titled Tuesday Blitz July 05 Early 2022"]
[White "Suleymanli, Suleyman"]
[Black "Zhigalko, Sergei"]
[WhiteFideId "13416375"]
[BlackFideId "13502956"]
[WhiteElo "1652"]
[BlackElo "2662"]
[Result "1/2-1/2"]
[Round "02"]
[TimeControl "180+1"]
[Date "2022.07.05"]
[WhiteClock "0:01:08"]
[BlackClock "0:00:20"]

1. Nf3 {[%clk 0:03:00]}  d5 {[%clk 0:03:00]} 2. g3 {[%clk 0:03:00]}  c6 {[%clk 0:03:00]} 3. d4 {[%clk 0:02:59]}  Bg4 {[%clk 0:02:57]} 4. Bg2 {[%clk 0:02:54]}  Nf6 {[%clk 0:02:56]} 5. O-O {[%clk 0:02:52]}  e6 {[%clk 0:02:56]} 6. c4 {[%clk 0:02:50]}  Be7 {[%clk 0:02:56]} 7. b3 {[%clk 0:02:47]}  O-O {[%clk 0:02:55]} 8. Nc3 {[%clk 0:02:46]}  Nbd7 {[%clk 0:02:54]} 9. Bb2 {[%clk 0:02:46]}  h6 {[%clk 0:02:53]} 10. Nd2 {[%clk 0:02:43]}  Rc8 {[%clk 0:02:31]} 11. Qc2 {[%clk 0:02:36]}  c5 {[%clk 0:02:24]} 12. dxc5 {[%clk 0:02:34]}  Bxc5 {[%clk 0:02:22]} 13. e3 {[%clk 0:02:29]}  a6 {[%clk 0:02:04]} 14. cxd5 {[%clk 0:02:22]}  exd5 {[%clk 0:02:02]} 15. h3 {[%clk 0:02:07]}  Bh5 {[%clk 0:02:00]} 16. Nf3 {[%clk 0:01:56]}  b5 {[%clk 0:01:55]} 17. Qd2 {[%clk 0:01:51]}  Bb4 {[%clk 0:01:02]} 18. Qd4 {[%clk 0:01:42]}  Bc5 {[%clk 0:01:03]} 19. Qd2 {[%clk 0:01:42]}  Bb4 {[%clk 0:00:19]} 20. Qd4 {[%clk 0:01:08]}  Bc5 {[%clk 0:00:20]} 21. Qd2 {[%clk 0:01:08]} 1/2-1/2


[Site "https://www.chess.com"]

[Event "Titled Tuesday Blitz July 05 Early 2022"]
[White "Tari, Aryan"]
[Black "Malek, Jan"]
[WhiteFideId "1510045"]
[BlackFideId "21864080"]
[WhiteElo "2612"]
[BlackElo "2145"]
[Result "1-0"]
[Round "02"]
[TimeControl "180+1"]
[Date "2022.07.05"]
[WhiteClock "0:00:09"]
[BlackClock "0:00:08"]

1. c4 {[%clk 0:02:58]}  e5 {[%clk 0:02:59]} 2. Nc3 {[%clk 0:02:54]}  Bb4 {[%clk 0:02:59]} 3. Qc2 {[%clk 0:02:46]}  Nf6 {[%clk 0:02:57]} 4. e3 {[%clk 0:02:46]}  O-O {[%clk 0:02:56]} 5. Nge2 {[%clk 0:02:45]}  Nc6 {[%clk 0:02:56]} 6. a3 {[%clk 0:02:38]}  Be7 {[%clk 0:02:55]} 7. Nd5 {[%clk 0:02:39]}  d6 {[%clk 0:02:54]} 8. Ng3 {[%clk 0:02:34]}  Re8 {[%clk 0:02:54]} 9. b4 {[%clk 0:02:30]}  Bf8 {[%clk 0:02:52]} 10. Bb2 {[%clk 0:02:30]}  Nxd5 {[%clk 0:02:51]} 11. cxd5 {[%clk 0:02:30]}  Ne7 {[%clk 0:02:52]} 12. Bc4 {[%clk 0:02:26]}  g6 {[%clk 0:02:49]} 13. O-O {[%clk 0:02:24]}  Bg7 {[%clk 0:02:49]} 14. f4 {[%clk 0:02:22]}  Nf5 {[%clk 0:02:48]} 15. Nxf5 {[%clk 0:02:07]}  Bxf5 {[%clk 0:02:49]} 16. e4 {[%clk 0:02:08]}  Bd7 {[%clk 0:02:37]} 17. fxe5 {[%clk 0:02:07]}  Bxe5 {[%clk 0:02:36]} 18. d4 {[%clk 0:02:08]}  Bg7 {[%clk 0:02:30]} 19. Rae1 {[%clk 0:02:05]}  Qg5 {[%clk 0:02:21]} 20. Qf2 {[%clk 0:02:00]}  Re7 {[%clk 0:02:10]} 21. e5 {[%clk 0:01:42]}  Rae8 {[%clk 0:02:08]} 22. e6 {[%clk 0:01:20]}  fxe6 {[%clk 0:02:09]} 23. dxe6 {[%clk 0:01:20]}  Bc6 {[%clk 0:02:08]} 24. h4 {[%clk 0:00:37]}  Qg4 {[%clk 0:01:52]} 25. d5 {[%clk 0:00:19]}  Bxb2 {[%clk 0:01:41]} 26. Qxb2 {[%clk 0:00:19]}  Qxc4 {[%clk 0:01:12]} 27. dxc6 {[%clk 0:00:19]}  bxc6 {[%clk 0:01:05]} 28. Qf6 {[%clk 0:00:18]}  Rxe6 {[%clk 0:01:05]} 29. Qf7+ {[%clk 0:00:18]}  Kh8 {[%clk 0:01:05]} 30. Rxe6 {[%clk 0:00:13]}  Qxe6 {[%clk 0:00:56]} 31. Qxc7 {[%clk 0:00:13]}  Qe3+ {[%clk 0:00:47]} 32. Kh1 {[%clk 0:00:13]}  Qd4 {[%clk 0:00:37]} 33. Qxc6 {[%clk 0:00:12]}  Qxh4+ {[%clk 0:00:34]} 34. Kg1 {[%clk 0:00:13]}  Qd4+ {[%clk 0:00:28]} 35. Kh1 {[%clk 0:00:13]}  Qh4+ {[%clk 0:00:18]} 36. Kg1 {[%clk 0:00:14]}  Qd4+ {[%clk 0:00:19]} 37. Kh1 {[%clk 0:00:14]}  Qe5 {[%clk 0:00:11]} 38. Qc7 {[%clk 0:00:11]}  d5 {[%clk 0:00:08]} 39. Rf8+ {[%clk 0:00:09]} 1-0


[Site "https://www.chess.com"]